Workbook

Sheet БЖ
A1: БОРТОВОЙ ЖУРНАЛ ЛЕТЧИКА-НАБЛЮДАТЕЛЯ
A2: Владимирская
A3: база авиационной охраны лесов | G3: 2019-10-05 | T3: к заявке на полет № | AA3: 62 | AG3: Очередной № пожара | AK3: 100 | AM3: 1 | AN3: 1 | AO3: 1 | AP3: 1 | AQ3: 1 | AR3: 2 | AS3: 5 | AT3: 5 | AU3: 1
A4: Владимирское | G4: Самолет (вертолет) | K4: Ан-2 | N4: № | O4: 02525 | T4: Командир ВС | Z4: Петров И.П. | AG4: Очередн. № донесения | AK4: 1
A5: авиационное отделение | AG5: КПО | AH5: 3
I7: Летчик-наблюдатель | N7: Иванов И.А. | Z7: Проверяющий | AE7: Сидоров И.И.
A9: Предварительный расчет полета | M9: Необходимый запас ГСМ с учетом | AD9: План работы
A10: Маршрут | B10: МПУ | C10: УС | D10: УВ | E10: МК | F10: Vпр. | G10: W | H10: S, км | I10: tП | J10: Hрел. | K10: Hбез пр. | M10: навигационного запаса на | V10: =HOUR(I27+Настройки!E2) -> 1 | X10: час. | Z10: =MINUTE((I27+Настройки!E2)) -> 59 | AB10: мин. | AD10: Авиационное патрулирование лесов
N11: Нрас. | P11: 500 | R11: м; δн | T11: 60 | V11: ; U | X11: 18 | Z11: км/ч | AD11: с целью обнаружения и тушения лесных пожаров
A12: Владимир | B12: 262 | C12: =IF(F12>0,ROUND((180/PI()*ASIN(U/F12*SIN(D12*PI()/180))),1),0) -> 2.1 | D12: =IF((бн-B12)>180,-(360-(бн-B12)),IF((бн-B12)<-180,360+(бн-B12),бн-B12)) -> 158 | E12: =ROUND(IF((B12-C12)>360,B12-C12-360,IF((B12-C12)<0,B12-C12+360,B12-C12)),0) -> 260 | F12: 180 | G12: =IF(B12>0,ROUND(F12*COS((C12*PI()/180))+U*COS(D12*PI()/180),0),0) -> 163 | H12: 17 | I12: =IF(AND(H12>0,F12>0),TIME(ROUND(H12/G12,0),ROUND(H12/G12*60-ROUND(H12/G12,0)*60,0),0),0) -> 00:06:00 | J12: 168 | K12: =IF(J12<>0,ROUND(Настройки!$E$3+J12-($T$14-15)/300*(Настройки!$E$3+J12),0),0) -> 267 | M12: Пункты | P12: Солнце | T12: Темп. | V12: P | X12: Нм | Z12: δ | AB12: U
A13: Ставрово | B13: 288 | C13: =IF(F13>0,ROUND((180/PI()*ASIN(U/F13*SIN(D13*PI()/180))),1),0) -> 4.3 | D13: 132 | E13: =ROUND(IF((B13-C13)>360,B13-C13-360,IF((B13-C13)<0,B13-C13+360,B13-C13)),0) -> 284 | F13: 180 | G13: 167 | H13: 45 | I13: =IF(AND(H13>0,F13>0),TIME(ROUND(H13/G13,0),ROUND(H13/G13*60-ROUND(H13/G13,0)*60,0),0),0) -> 00:16:00 | J13: 213 | K13: =IF(J13<>0,ROUND(Настройки!$E$3+J13-($T$14-15)/300*(Настройки!$E$3+J13),0),0) -> 312 | P13: восх. | R13: зах.
A14: Кольчугино | B14: 233 | C14: =IF(F14>0,ROUND((180/PI()*ASIN(U/F14*SIN(D14*PI()/180))),1),0) -> -0.7 | D14: -173 | E14: 234 | F14: 180 | G14: 162 | H14: 37 | I14: 00:14:00 | J14: 216 | K14: =IF(J14<>0,ROUND(Настройки!$E$3+J14-($T$14-15)/300*(Настройки!$E$3+J14),0),0) -> 315 | M14: Владимир | P14: 06:39:00 | R14: 17:58:00 | T14: 16 | V14: 756 | X14: 164 | Z14: 210 | AB14: 3
A15: Киржач | B15: 133 | C15: =IF(F15>0,ROUND((180/PI()*ASIN(U/F15*SIN(D15*PI()/180))),1),0) -> -5.5 | D15: -73 | E15: 139 | F15: 180 | G15: 184 | H15: 33 | I15: 00:11:00 | J15: 149 | K15: =IF(J15<>0,ROUND(Настройки!$E$3+J15-($T$14-15)/300*(Настройки!$E$3+J15),0),0) -> 248
A16: Покров | B16: 64 | C16: =IF(F16>0,ROUND((180/PI()*ASIN(U/F16*SIN(D16*PI()/180))),1),0) -> -0.4 | D16: -4 | E16: 64 | F16: 180 | G16: 198 | H16: 62 | I16: 00:19:00 | J16: 159 | K16: =IF(J16<>0,ROUND(Настройки!$E$3+J16-($T$14-15)/300*(Настройки!$E$3+J16),0),0) -> 258
A17: Собинка | B17: 40 | C17: =IF(F17>0,ROUND((180/PI()*ASIN(U/F17*SIN(D17*PI()/180))),1),0) -> 2 | D17: 20 | E17: 38 | F17: 180 | G17: 197 | H17: 25 | I17: 00:08:00 | J17: 168 | K17: =IF(J17<>0,ROUND(Настройки!$E$3+J17-($T$14-15)/300*(Настройки!$E$3+J17),0),0) -> 267
A18: Владимир | B18: 0 | C18: =IF(F18>0,ROUND((180/PI()*ASIN(U/F18*SIN(D18*PI()/180))),1),0) -> 0 | D18: 60 | E18: 0 | G18: 0 | H18: 0 | I18: 00:00:00 | J18: 0 | K18: =IF(J18<>0,ROUND(Настройки!$E$3+J18-($T$14-15)/300*(Настройки!$E$3+J18),0),0) -> 0
A19: 0 | B19: 0 | C19: =IF(F19>0,ROUND((180/PI()*ASIN(U/F19*SIN(D19*PI()/180))),1),0) -> 0 | D19: 60 | E19: 0 | G19: 0 | H19: 0 | I19: 00:00:00 | J19: 0 | K19: =IF(J19<>0,ROUND(Настройки!$E$3+J19-($T$14-15)/300*(Настройки!$E$3+J19),0),0) -> 0
A20: 0 | B20: 0 | C20: =IF(F20>0,ROUND((180/PI()*ASIN(U/F20*SIN(D20*PI()/180))),1),0) -> 0 | D20: 60 | E20: 0 | G20: 0 | H20: 0 | I20: 00:00:00 | J20: 0 | K20: =IF(J20<>0,ROUND(Настройки!$E$3+J20-($T$14-15)/300*(Настройки!$E$3+J20),0),0) -> 0
A21: 0 | B21: 0 | C21: =IF(F21>0,ROUND((180/PI()*ASIN(U/F21*SIN(D21*PI()/180))),1),0) -> 0 | D21: 60 | E21: 0 | G21: 0 | H21: 0 | I21: 00:00:00 | J21: 0 | K21: =IF(J21<>0,ROUND(Настройки!$E$3+J21-($T$14-15)/300*(Настройки!$E$3+J21),0),0) -> 0
A22: 0 | B22: 0 | C22: =IF(F22>0,ROUND((180/PI()*ASIN(U/F22*SIN(D22*PI()/180))),1),0) -> 0 | D22: 60 | E22: 0 | G22: 0 | H22: 0 | I22: 00:00:00 | J22: 0 | K22: =IF(J22<>0,ROUND(Настройки!$E$3+J22-($T$14-15)/300*(Настройки!$E$3+J22),0),0) -> 0 | M22: Pмин. прив. по маршруту | V22: 771 | Y22: мм рт.ст.
A23: 0 | B23: 0 | C23: =IF(F23>0,ROUND((180/PI()*ASIN(U/F23*SIN(D23*PI()/180))),1),0) -> 0 | D23: 60 | E23: 0 | G23: 0 | H23: 0 | I23: 00:00:00 | J23: 0 | K23: =IF(J23<>0,ROUND(Настройки!$E$3+J23-($T$14-15)/300*(Настройки!$E$3+J23),0),0) -> 0
A24: 0 | B24: 0 | C24: =IF(F24>0,ROUND((180/PI()*ASIN(U/F24*SIN(D24*PI()/180))),1),0) -> 0 | D24: 60 | E24: 0 | G24: 0 | H24: 0 | I24: 00:00:00 | J24: 0 | K24: =IF(J24<>0,ROUND(Настройки!$E$3+J24-($T$14-15)/300*(Настройки!$E$3+J24),0),0) -> 0 | M24: Предполетную подготовку проверил:
A25: 0 | B25: 0 | C25: =IF(F25>0,ROUND((180/PI()*ASIN(U/F25*SIN(D25*PI()/180))),1),0) -> 0 | D25: 60 | E25: 0 | G25: 0 | H25: 0 | I25: 00:00:00 | J25: 0 | K25: =IF(J25<>0,ROUND(Настройки!$E$3+J25-($T$14-15)/300*(Настройки!$E$3+J25),0),0) -> 0
A26: 0 | B26: 0 | C26: =IF(F26>0,ROUND((180/PI()*ASIN(U/F26*SIN(D26*PI()/180))),1),0) -> 0 | D26: 60 | E26: 0 | G26: 0 | H26: 0 | I26: 00:00:00 | J26: 0 | K26: =IF(J26<>0,ROUND(Настройки!$E$3+J26-($T$14-15)/300*(Настройки!$E$3+J26),0),0) -> 0 | M26: 2019-09-12 | T26: Подпись
C27: =IF(F27>0,ROUND((180/PI()*ASIN(U/F27*SIN(D27*PI()/180))),1),0) -> 0 | H27: =SUM(H12:H26) -> 219 | I27: =SUM(I12:I26) -> 01:14:00
A28: ОТЧЁТ О ВЫПОЛНЕНИИ ПОЛЁТА
A29: Распределение налета на тушение по пожарам
A30: Код авиаотделения | AJ30: ИТОГО на тушение лесных пожаров
A31: № пожара | C31: ='БЖ обратная сторона'!E25 -> 100 | E31: ='БЖ обратная сторона'!F25 -> 0 | F31: ='БЖ обратная сторона'!G25 -> 0 | G31: ='БЖ обратная сторона'!H25 -> 0 | H31: ='БЖ обратная сторона'!I25 -> 0 | I31: ='БЖ обратная сторона'!J25 -> 0 | J31: ='БЖ обратная сторона'!L25 -> 0 | K31: ='БЖ обратная сторона'!N25 -> 0 | M31: ='БЖ обратная сторона'!O25 -> 0 | N31: ='БЖ обратная сторона'!Q25 -> 0 | P31: ='БЖ обратная сторона'!R25 -> 0 | R31: ='БЖ обратная сторона'!T25 -> 0 | T31: ='БЖ обратная сторона'!U25 -> 0 | V31: ='БЖ обратная сторона'!W25 -> 0 | X31: ='БЖ обратная сторона'!Y25 -> 0 | Z31: ='БЖ обратная сторона'!AD25 -> 0
A32: Ведомство | C32: ='БЖ обратная сторона'!E33 -> ФАЛХ | E32: ='БЖ обратная сторона'!F33 -> 0 | F32: ='БЖ обратная сторона'!G33 -> 0 | G32: ='БЖ обратная сторона'!H33 -> 0 | H32: ='БЖ обратная сторона'!I33 -> 0 | I32: ='БЖ обратная сторона'!J33 -> 0 | J32: ='БЖ обратная сторона'!L33 -> 0 | K32: ='БЖ обратная сторона'!N33 -> 0 | M32: ='БЖ обратная сторона'!O33 -> 0 | N32: ='БЖ обратная сторона'!Q33 -> 0 | P32: ='БЖ обратная сторона'!R33 -> 0 | R32: ='БЖ обратная сторона'!T33 -> 0 | T32: ='БЖ обратная сторона'!U33 -> 0 | V32: ='БЖ обратная сторона'!W33 -> 0 | X32: ='БЖ обратная сторона'!Y33 -> 0 | Z32: ='БЖ обратная сторона'!AD26 -> 0
A33: Налёт час.мин. | C33: ='БЖ обратная сторона'!E27 -> 00:20:00 | E33: ='БЖ обратная сторона'!F27 -> 00:00:00 | F33: ='БЖ обратная сторона'!G27 -> 00:00:00 | G33: ='БЖ обратная сторона'!H27 -> 00:00:00 | H33: ='БЖ обратная сторона'!I27 -> 00:00:00 | I33: ='БЖ обратная сторона'!J27 -> 00:00:00 | J33: ='БЖ обратная сторона'!L27 -> 00:00:00 | K33: ='БЖ обратная сторона'!N27 -> 00:00:00 | M33: ='БЖ обратная сторона'!O27 -> 00:00:00 | N33: ='БЖ обратная сторона'!Q27 -> 00:00:00 | P33: ='БЖ обратная сторона'!R27 -> 00:00:00 | R33: ='БЖ обратная сторона'!T27 -> 00:00:00 | T33: ='БЖ обратная сторона'!U27 -> 00:00:00 | V33: ='БЖ обратная сторона'!W27 -> 00:00:00 | X33: ='БЖ обратная сторона'!Y27 -> 00:00:00 | Z33: ='БЖ обратная сторона'!AD27 -> 00:00:00 | AJ33: =TIME(ROUNDDOWN(AJ34/60,0),AJ34-ROUNDDOWN(AJ34/60,0)*60,0) -> 00:20:00
A34: Налёт, мин. | C34: =MINUTE(C33)+HOUR(C33)*60 -> 20 | E34: =MINUTE(E33)+HOUR(E33)*60 -> 0 | F34: 0 | G34: 0 | H34: 0 | I34: 0 | J34: 0 | K34: 0 | M34: =MINUTE(M33)+HOUR(M33)*60 -> 0 | N34: =MINUTE(L33)+HOUR(L33)*60 -> 0 | P34: =MINUTE(N33)+HOUR(N33)*60 -> 0 | R34: =MINUTE(P33)+HOUR(P33)*60 -> 0 | T34: =MINUTE(R33)+HOUR(R33)*60 -> 0 | V34: =MINUTE(T33)+HOUR(T33)*60 -> 0 | X34: =MINUTE(V33)+HOUR(V33)*60 -> 0 | Z34: =MINUTE(X33)+HOUR(X33)*60 -> 0 | AB34: =MINUTE(Z33)+HOUR(Z33)*60 -> 0 | AD34: =MINUTE(AB33)+HOUR(AB33)*60 -> 0 | AE34: 0 | AF34: 0 | AG34: 0 | AH34: 0 | AI34: 0 | AJ34: =SUM(C34:AI34) -> 20
A35: Личный налёт по группам | I35: Налёт по видам работ | R35: Дополнительная информация
A36: ФИО | I36: Вид работ | N36: Налёт
A37: =N7 -> Иванов И.А. | E37: 01:25:00 | I37: =OFFSET(Справочники!F1,AQ3,0) -> Тушение | N37: =AJ33 -> 00:20:00
A38: =AE7 -> Сидоров И.И. | E38: 01:25:00 | I38: =OFFSET(Справочники!F1,AR3,0) -> Патрулирование | N38: ='БЖ обратная сторона'!AF29 -> 01:05:00
I39: ='БЖ обратная сторона'!B31 -> Прочее
I40: ИТОГО: | N40: =TIME(ROUNDDOWN(('БЖ обратная сторона'!AF28+'БЖ обратная сторона'!AF30+'БЖ обратная сторона'!AF32)/60,0),('БЖ обратная сторона'!AF28+'БЖ обратная сторона'!AF30+'БЖ обратная сторона'!AF32)-ROUNDDOWN(('БЖ обратная сторона'!AF28+'БЖ обратная сторона'!AF30+'БЖ обратная сторона'!AF32)/60,0)*60,0) -> 01:25:00
A42: Фактическое время полета | F42: =IF(HOUR(SUM('БЖ обратная сторона'!J7:K23)+SUM('Доп к БЖ'!I10:J35)+SUM('Доп к БЖ-2'!I7:J34))=0,"0",HOUR(SUM('БЖ обратная сторона'!J7:K23)+SUM('Доп к БЖ'!I10:J35)+SUM('Доп к БЖ-2'!I7:J34))) -> 1 | G42: час. | H42: =IF(MINUTE(SUM('БЖ обратная сторона'!J7:K23)+SUM('Доп к БЖ'!I10:J35)+SUM('Доп к БЖ-2'!I7:J34))=0,"00",MINUTE(SUM('БЖ обратная сторона'!J7:K23)+SUM('Доп к БЖ'!I10:J35)+SUM('Доп к БЖ-2'!I7:J34))) -> 25 | I42: мин. | M42: Подпись, ФИО летчика-наблюдателя | AI42: =N7 -> Иванов И.А.
A43: Оценка и основные недостатки в работе летнаба в полете
M45: Должность, подпись, ФИО проверяющего | AI45: =AE7 -> Сидоров И.И.

Sheet БЖ обратная сторона
A1: ВЫПОЛНЕНИЕ ПОЛЕТА
A2: Маршрут | C2: время | E2: МК | F2: H | G2: Vпр. | H2: УС | I2: S, км | J2: tП | L2: W | N2: а) | O2: РНТ | R2: время | U2: МК | W2: КУР | Y2: МПР | AE2: МПС | AG2: МС | AI2: Для заметок
C3: расч. | D3: факт. | O3: (место) | R3: пеленг. | AI3: состояние пожара | AK3: характкрис-тика принятых мер
N4: б) № пож. | O4: лесничество | R4: участвковое лесничество | U4: № квар-тала | W4: район | Y4: состав, полнота, возраст | AE4: площ., га | AG4: катего-рия причин
A7: взлет | D7: 14:00:00 | E7: 197 | J7: =IF(AND((D8-D7)>0,A7<>"Посадка"),D8-D7,0) -> 00:01:00 | L7: =IF(AND(J7>0,D7>0,NOT(ISNUMBER(SEARCH("Сход",N8)))),ROUND(I7/(HOUR(J7)+MINUTE(J7)/60),0),0) -> 0 | N7: Ясно Видимость более 10 км
A8: отход | D8: 14:01:00 | E8: 260 | F8: 200 | G8: 170 | H8: 2 | I8: 17 | J8: 00:06:00 | L8: 170 | N8: р/д Забойка "Взлет"
A9: Ставрово | C9: 14:07:00 | D9: 14:07:00 | E9: 284 | F9: 800 | G9: 180 | H9: 4 | I9: 45 | J9: 00:16:00 | L9: 169 | N9: р/д Забойка 1 "Пожаров нет"
A10: Кольчугино | C10: 14:23:00 | D10: 14:23:00 | E10: 234 | F10: 800 | G10: 180 | H10: -1 | I10: 37 | J10: 00:08:00 | L10: 0 | N10: р/д Забойка 2 "Пожаров нет"
A11: Бельцы | D11: 14:31:00 | E11: 300 | F11: 800 | G11: 180 | J11: 00:04:00 | L11: 0 | N11: Сход на дым
A12: Слободка | D12: 14:35:00 | F12: 600 | G12: 180 | J12: 00:03:00 | L12: =IF(AND(J12>0,D12>0,NOT(ISNUMBER(SEARCH("Сход",N14)))),ROUND(I12/(HOUR(J12)+MINUTE(J12)/60),0),0) -> 0 | N12: 100 | O12: Кольчугинское | Q12: Киржачское | R12: Кипреевское | T12: Кипреевское | U12: 36 | W12: н | Y12: 6С4Е, 0,7, присп | AE12: 0.2 | AG12: н/у | AI12: низ. слаб. | AK12: Требуется 6 чел., 1 Пм.
A13: Пожар №100 | D13: 14:38:00 | F13: 600 | G13: 180 | J13: 00:02:00 | L13: =IF(AND(J13>0,D13>0,NOT(ISNUMBER(SEARCH("Сход",N15)))),ROUND(I13/(HOUR(J13)+MINUTE(J13)/60),0),0) -> 0 | N13: Севернее н.п. Слободка 3 км
A14: отход | D14: 14:40:00 | E14: 190 | F14: 600 | G14: 180 | J14: 00:04:00 | L14: 0 | N14: р/д Забойка 3 "Сообщение о пожаре №100"
A15: Киржач | D15: 14:44:00 | E15: 139 | F15: 600 | G15: 180 | H15: -5 | I15: 33 | J15: 00:11:00 | L15: 180
A16: Покров | C16: 14:55:00 | D16: 14:55:00 | E16: 64 | F16: 600 | G16: 180 | H16: 1 | I16: 62 | J16: =IF(AND((D17-D16)>0,A16<>"Посадка"),D17-D16,0) -> 00:20:00 | L16: 186 | N16: р/д Забойка 4 "Пожаров нет"
A17: Собинка | C17: 15:14:00 | D17: 15:15:00 | E17: 38 | F17: 600 | G17: 180 | H17: 2 | I17: 25 | J17: 00:08:00 | L17: 188 | N17: р/д Забойка 5"Пожаров нет"
A18: Владимир | C18: 15:23:00 | D18: 15:23:00 | F18: 200 | G18: 170 | J18: 00:02:00 | L18: 0 | N18: р/д Забойка "Посадка"
A19: посадка | D19: 15:25:00 | E19: 197 | J19: 00:00:00 | L19: 0 | N19: конец работы
J20: 00:00:00 | L20: 0
J21: 00:00:00 | L21: 0
J22: 00:00:00 | L22: 0
J23: 00:00:00 | L23: 0
A24: РАСПРЕДЕЛЕНИЕ НАЛЕТА ПО ВИДАМ РАБОТ И ВЕДОМСТВАМ
A25: № пожаров | E25: 100 | AF25: Итого налет | AI25: в т.ч.
AI26: =Справочники!G2 -> ФАЛХ | AK26: =Справочники!G3 -> ООПТ
A27: Вид работ | B27: =Справочники!F2 -> Тушение | E27: 00:20:00 | AF27: =TIME(ROUNDDOWN(AF28/60,0),AF28-ROUNDDOWN(AF28/60,0)*60,0) -> 00:20:00 | AI27: =TIME(ROUNDDOWN(AI28/60,0),AI28-ROUNDDOWN(AI28/60,0)*60,0) -> 00:20:00 | AK27: =TIME(ROUNDDOWN(AK28/60,0),AK28-ROUNDDOWN(AK28/60,0)*60,0) -> 00:00:00
C28: =B27 -> Тушение | D28: мин | E28: =MINUTE(E27)+HOUR(E27)*60 -> 20 | F28: =MINUTE(F27)+HOUR(F27)*60 -> 0 | G28: =MINUTE(G27)+HOUR(G27)*60 -> 0 | H28: 0 | I28: 0 | J28: 0 | L28: 0 | N28: 0 | O28: 0 | P28: 0 | Q28: 0 | R28: 0 | S28: 0 | T28: 0 | U28: 0 | V28: 0 | W28: 0 | X28: 0 | Y28: 0 | Z28: 0 | AA28: 0 | AB28: 0 | AC28: 0 | AD28: 0 | AF28: =SUM(E28:AD28) -> 20 | AI28: =SUMIF($E$33:$AD$33,AI26,E28:AD28) -> 20 | AK28: =SUMIF($E$33:$AD$33,AK26,E28:AD28) -> 0
B29: Патрулирование | E29: 01:05:00 | AF29: =TIME(ROUNDDOWN(AF30/60,0),AF30-ROUNDDOWN(AF30/60,0)*60,0) -> 01:05:00 | AI29: =TIME(ROUNDDOWN(AI30/60,0),AI30-ROUNDDOWN(AI30/60,0)*60,0) -> 01:05:00 | AK29: =TIME(ROUNDDOWN(AK30/60,0),AK30-ROUNDDOWN(AK30/60,0)*60,0) -> 00:00:00
C30: =B29 -> Патрулирование | D30: мин | E30: =MINUTE(E29)+HOUR(E29)*60 -> 65 | F30: 0 | G30: 0 | H30: 0 | I30: 0 | J30: 0 | L30: =MINUTE(L29)+HOUR(L29)*60 -> 0 | N30: =MINUTE(N29)+HOUR(N29)*60 -> 0 | O30: 0 | P30: 0 | Q30: 0 | R30: 0 | S30: 0 | T30: 0 | U30: 0 | V30: 0 | W30: 0 | X30: 0 | Y30: 0 | Z30: 0 | AA30: 0 | AB30: 0 | AC30: 0 | AD30: 0 | AF30: =SUM(E30:AD30) -> 65 | AI30: =SUMIF($E$33:$AD$33,AI26,E30:AD30) -> 65 | AK30: =SUMIF($E$33:$AD$33,AK26,E30:AD30) -> 0
B31: Прочее | AF31: =TIME(ROUNDDOWN(AF32/60,0),AF32-ROUNDDOWN(AF32/60,0)*60,0) -> 00:00:00 | AI31: =TIME(ROUNDDOWN(AI32/60,0),AI32-ROUNDDOWN(AI32/60,0)*60,0) -> 00:00:00 | AK31: =TIME(ROUNDDOWN(AK32/60,0),AK32-ROUNDDOWN(AK32/60,0)*60,0) -> 00:00:00
C32: =B31 -> Прочее | D32: мин | E32: =MINUTE(E31)+HOUR(E31)*60 -> 0 | F32: 0 | G32: 0 | H32: 0 | I32: 0 | J32: 0 | L32: =MINUTE(L31)+HOUR(L31)*60 -> 0 | N32: =MINUTE(N31)+HOUR(N31)*60 -> 0 | O32: 0 | P32: 0 | Q32: 0 | R32: 0 | S32: 0 | T32: 0 | U32: 0 | V32: 0 | W32: 0 | X32: 0 | Y32: 0 | Z32: 0 | AA32: 0 | AB32: 0 | AC32: 0 | AD32: 0 | AF32: =SUM(E32:AD32) -> 0 | AI32: =SUMIF($E$33:$AD$33,AI26,E32:AD32) -> 0 | AJ32: =SUMIF($E$33:$AD$33,AJ28,F32:AE32) -> 0 | AK32: =SUMIF($E$33:$AD$33,AK26,E32:AD32) -> 0
A33: Наименование ведомств | E33: ФАЛХ
A35: Фактическое время полета | E35: =БЖ!F42 -> 1 | F35: час. | G35: =БЖ!H42 -> 25 | H35: мин. | T35: Подпись летчика-наблюдателя | Z35: летчик-наблюдатель | AI35: =БЖ!N7 -> Иванов И.А.
A37: Оценка и основные недостатки в работе летнаба в полете __________________________________________________________________
R39: Должность, подпись ФИО, проверяющего | AI39: =БЖ!AE7 -> Сидоров И.И.

Sheet Доп к БЖ
A2: =БЖ!A4 -> Владимирское | D2: Продолжение № _____ бортжурнала от | N2: =БЖ!G3 -> 2019-10-05 | AA2: к заявке на полёт № | AG2: =БЖ!AA3 -> 62
A3: авиаотделению | N3: дата | AG3: номер заявки
A4: ВЫПОЛНЕНИЕ ПОЛЕТА
A5: Маршрут | B5: время | D5: МК | E5: H | F5: Vпр. | G5: УС | H5: S, км | I5: tП | K5: W | M5: а) | N5: РНТ | Q5: время | T5: МК | V5: КУР | X5: МПР | AD5: МПС | AF5: МС | AH5: Для заметок
B6: расч. | C6: факт. | N6: (место) | Q6: пеленг. | AH6: состояние пожара | AJ6: характеристика принятых мер
M7: б) № пож. | N7: лесничество | Q7: участвковое лесничество | T7: № квар-тала | V7: район | X7: состав, полнота, возраст | AD7: площ., га | AF7: катего-рия причин
I10: =IF(AND((C11-C10)>0,A10<>"Посадка"),C11-C10,0) -> 00:00:00 | K10: =IF(AND(I10>0,C10>0),ROUND(H10/(HOUR(I10)+MINUTE(I10)/60),0),0) -> 0
I11: 00:00:00 | K11: =IF(AND(I11>0,C11>0),ROUND(H11/(HOUR(I11)+MINUTE(I11)/60),0),0) -> 0
I12: 00:00:00 | K12: =IF(AND(I12>0,C12>0),ROUND(H12/(HOUR(I12)+MINUTE(I12)/60),0),0) -> 0
I13: 00:00:00 | K13: 0
I14: 00:00:00 | K14: 0
I15: 00:00:00 | K15: 0
I16: 00:00:00 | K16: 0
I17: 00:00:00 | K17: 0
I18: 00:00:00 | K18: 0
I19: 00:00:00 | K19: 0
I20: 00:00:00 | K20: 0
I21: 00:00:00 | K21: 0
I22: 00:00:00 | K22: 0
I23: 00:00:00 | K23: 0
I24: 00:00:00 | K24: 0
I25: 00:00:00 | K25: 0
I26: 00:00:00 | K26: 0
I27: 00:00:00 | K27: 0
I28: 00:00:00 | K28: 0
I29: 00:00:00 | K29: 0
I30: 00:00:00 | K30: 0
I31: 00:00:00 | K31: 0
I32: 00:00:00 | K32: 0
I33: 00:00:00 | K33: 0
I34: 00:00:00 | K34: 0
I35: 00:00:00 | K35: 0

Sheet Доп к БЖ-2
A1: ВЫПОЛНЕНИЕ ПОЛЕТА
A2: Маршрут | B2: время | D2: МК | E2: H | F2: Vпр. | G2: УС | H2: S, км | I2: tП | K2: W | M2: а) | N2: РНТ | Q2: время | T2: МК | V2: КУР | X2: МПР | AD2: МПС | AF2: МС | AH2: Для заметок
B3: расч. | C3: факт. | N3: (место) | Q3: пеленг. | AH3: состояние пожара | AJ3: характеристика принятых мер
M4: б) № пож. | N4: лесничество | Q4: участвковое лесничество | T4: № квар-тала | V4: район | X4: состав, полнота, возраст | AD4: площ., га | AF4: катего-рия причин
I7: =IF(AND((C8-C7)>0,A7<>"Посадка"),C8-C7,0) -> 00:00:00 | K7: =IF(AND(I7>0,C7>0),ROUND(H7/(HOUR(I7)+MINUTE(I7)/60),0),0) -> 0
I8: 00:00:00 | K8: =IF(AND(I8>0,C8>0),ROUND(H8/(HOUR(I8)+MINUTE(I8)/60),0),0) -> 0
I9: 00:00:00 | K9: 0
I10: 00:00:00 | K10: 0
I11: 00:00:00 | K11: 0
I12: 00:00:00 | K12: 0
I13: 00:00:00 | K13: 0
I14: 00:00:00 | K14: 0
I15: 00:00:00 | K15: 0
I16: 00:00:00 | K16: 0
I17: 00:00:00 | K17: 0
I18: 00:00:00 | K18: 0
I19: 00:00:00 | K19: 0
I20: 00:00:00 | K20: 0
I21: 00:00:00 | K21: 0
I22: 00:00:00 | K22: 0
I23: 00:00:00 | K23: 0
I24: 00:00:00 | K24: 0
I25: 00:00:00 | K25: 0
I26: 00:00:00 | K26: 0
I27: 00:00:00 | K27: 0
I28: 00:00:00 | K28: 0
I29: 00:00:00 | K29: 0
I30: 00:00:00 | K30: 0
I31: 00:00:00 | K31: 0
I32: 00:00:00 | K32: 0
I33: 00:00:00 | K33: 0
I34: 00:00:00 | K34: 0

Sheet Архив маршрутов
A2: Выбранный маршрут
A3: =OFFSET(A3,0,A33*4) -> Маршрут № 4 | E3: Маршрут № 1 | I3: Маршрут № 2 | M3: Маршрут № 3 | Q3: Маршрут № 4 | U3: Маршрут № 5 | Y3: Маршрут № 6 | AC3: 7 | AG3: 8 | AK3: 9 | AO3: 10
A4: Маршрут | B4: МПУ | C4: S, км | D4: Hрел. | E4: Маршрут | F4: МПУ | G4: S, км | H4: Hрел. | I4: Маршрут | J4: МПУ | K4: S, км | L4: Hрел. | M4: Маршрут | N4: МПУ | O4: S, км | P4: Hрел. | Q4: Маршрут | R4: МПУ | S4: S, км | T4: Hрел. | U4: Маршрут | V4: МПУ | W4: S, км | X4: Hрел. | Y4: Маршрут | Z4: МПУ | AA4: S, км | AB4: Hрел. | AC4: Маршрут | AD4: МПУ | AE4: S, км | AF4: Hрел. | AG4: Маршрут | AH4: МПУ | AI4: S, км | AJ4: Hрел. | AK4: Маршрут | AL4: МПУ | AM4: S, км | AN4: Hрел. | AO4: Маршрут | AP4: МПУ | AQ4: S, км | AR4: Hрел.
A6: =OFFSET(A6,0,$A$33*4) -> 0 | B6: 0 | C6: 0 | D6: 0 | E6: Владимир | F6: 220 | G6: 25 | H6: 168 | I6: Владимир | J6: 262 | K6: 17 | L6: 168 | M6: Владимир | N6: 262 | O6: 17 | P6: 168
A7: 0 | B7: 0 | C7: 0 | D7: 0 | E7: Собинка | F7: 149 | G7: 37 | H7: 162 | I7: Ставрово | J7: 288 | K7: 45 | L7: 213 | M7: Ставрово | N7: 288 | O7: 45 | P7: 213
A8: 0 | B8: 0 | C8: 0 | D8: 0 | E8: Уршельский | F8: 105 | G8: 97 | H8: 162 | I8: Кольчугино | J8: 233 | K8: 37 | L8: 216 | M8: Кольчугино | N8: 233 | O8: 37 | P8: 216
A9: 0 | B9: 0 | C9: 0 | D9: 0 | E9: Меленки | F9: 360 | G9: 62 | H9: 154 | I9: Киржач | J9: 133 | K9: 33 | L9: 149 | M9: Киржач | N9: 133 | O9: 33 | P9: 149
A10: 0 | B10: 0 | C10: 0 | D10: 0 | E10: КР.Горбатка | F10: 38 | G10: 55 | H10: 159 | I10: Покров | J10: 64 | K10: 62 | L10: 159 | M10: Покров | N10: 64 | O10: 62 | P10: 159
A11: 0 | B11: 0 | C11: 0 | D11: 0 | E11: Перово | F11: 276 | G11: 72 | H11: 152 | I11: Собинка | J11: 40 | K11: 25 | L11: 168 | M11: Собинка | N11: 149 | O11: 37 | P11: 162
A12: 0 | B12: 0 | C12: 0 | D12: 0 | E12: Ковров | F12: 224 | G12: 60 | H12: 131 | I12: Владимир | M12: Уршельский | N12: 105 | O12: 97 | P12: 162
A13: 0 | B13: 0 | C13: 0 | D13: 0 | E13: Бараки | F13: 294 | G13: 17 | H13: 164 | M13: Меленки | N13: 360 | O13: 62 | P13: 154
A14: 0 | B14: 0 | C14: 0 | D14: 0 | E14: Владимир | M14: Кр.Горбатка | N14: 38 | O14: 55 | P14: 159
A15: 0 | B15: 0 | C15: 0 | D15: 0 | M15: Перово | N15: 276 | O15: 72 | P15: 152
A16: 0 | B16: 0 | C16: 0 | D16: 0 | M16: Ковров | N16: 224 | O16: 60 | P16: 131
A17: 0 | B17: 0 | C17: 0 | D17: 0 | M17: Бараки | N17: 294 | O17: 17 | P17: 164
A18: 0 | B18: 0 | C18: 0 | D18: 0 | M18: Владимир
A19: 0 | B19: 0 | C19: 0 | D19: 0
A20: 0 | B20: 0 | C20: 0 | D20: 0
A22: Список маршрутов
A23: =E3 -> Маршрут № 1
A24: =I3 -> Маршрут № 2
A25: =M3 -> Маршрут № 3
A26: =Q3 -> Маршрут № 4
A27: =U3 -> Маршрут № 5
A28: =Y3 -> Маршрут № 6
A29: =AC3 -> 7
A30: =AG3 -> 8
A31: =AK3 -> 9
A32: =AO3 -> 10
A33: 4

Sheet Справочники
A1: Список летнабов | B1: Командир ВС | C1: Тип ВС | D1: № борта | E1: Проверяющий | F1: Вид работ | G1: Ведомство
A2: Иванов И.А. | B2: Петров И.П. | C2: Ан-2 | D2: 02525 | E2: Сидоров И.И. | F2: Тушение | G2: ФАЛХ
F3: Патрулирование | G3: ООПТ
F4: Тренировка | G4: МО
F5: Прочее

Sheet Настройки
A1: Настройки | G1: Символы
A2: Аэронавигационный запас, ч:мин | E2: 00:45:00 | G2: Взлет
A3: Безопасная истинная высота, м | E3: 100 | G3: Посадка
A4: Широта, градусов (пример, 56.78) | E4: 56.13 | G4: Траверз
A5: Долгота, градусов (пример, 94.38) | E5: 40.32 | G5: Коробочка
A6: Часовой пояс | E6: 3
